{"text_format":"3","workbook":"xlsx","n_sheets":4,"sheets":["Handleliste","Forklaring av budsjett","Liste over gjøremål","Del liste"],"not_rendered":{"charts":2,"images":2,"defined_names":12},"read":"whole","date_system":"1900"}

{"sheet":"Handleliste","index":0,"n_rows":25,"n_cols":8,"rows_kept":25,"merged":[[2,1,2,7],[3,1,3,2],[4,4,6,7]]}
[null,"Skolestart ","Planlegger"]
[]
[null,"Spore handlefremdriften i forhold til beløpene i budsjettkategorien som er angitt i budsjettforklaringen."]
[null,"Budsjettsammendrag ",null,null,{"$f":"\"Innkjøpsfremdrift (\"&COUNTIFS(Sjekkliste[Kjøpte], \">0\")&\" i \"&COUNTIFS(Sjekkliste[Kjøpe], \">0\")&\")\"","v":"Innkjøpsfremdrift (1 i 6)"}]
[null,"Budsjett",{"v":1500,"d":"kr 1,500.00"},null,{"$f":"IFERROR(COUNTIFS(Sjekkliste[Kjøpe],\">0\",Sjekkliste[Kjøpte],\">0\")/Sum_varer_som_skal_kjøpes,0)","v":{"v":0.16666666666666666,"d":"17%"}}]
[null,"Total handleliste",{"$f":"IFERROR(SUM(Sjekkliste_for_total), \"\")","v":{"v":365,"d":"kr 365.00"}}]
[null,"Gjenstående beløp",{"$f":"IFERROR(C5-C6, \"\")","v":{"v":1135,"d":"kr 1,135.00"}}]
[null,"Handleliste"]
[null,"Vare","Kategori","Mengde","Kjøpe","Kostnad","Kjøpte","Totale kostnader"]
[null,"Matematikk","Tekstboks ",1,1,{"v":55,"d":"kr 55.00"},1,{"$f":"IFERROR(Sjekkliste[Mengde]*Sjekkliste[Kostnad], \"\")","v":{"v":55,"d":"kr 55.00"}}]
[null,"Engelsk","Tekstboks ",1,1,null,null,{"$f":"IFERROR(Sjekkliste[Mengde]*Sjekkliste[Kostnad], \"\")","v":0}]
[null,"Ryggsekk","Utstyr",1,null,{"v":30,"d":"kr 30.00"},null,{"$f":"IFERROR(Sjekkliste[Mengde]*Sjekkliste[Kostnad], \"\")","v":{"v":30,"d":"kr 30.00"}}]
[null,"Kalkulator","Utstyr",1,{"$nulls":3},{"$f":"IFERROR(Sjekkliste[Mengde]*Sjekkliste[Kostnad], \"\")","v":0}]
[null,"Merkepenner","Utstyr",3,{"$nulls":3},{"$f":"IFERROR(Sjekkliste[Mengde]*Sjekkliste[Kostnad], \"\")","v":0}]
[null,"Uniform","Klær",2,1,{"v":100,"d":"kr 100.00"},null,{"$f":"IFERROR(Sjekkliste[Mengde]*Sjekkliste[Kostnad], \"\")","v":{"v":200,"d":"kr 200.00"}}]
[null,"Skjorte, opp-knapp","Klær",4,{"$nulls":3},{"$f":"IFERROR(Sjekkliste[Mengde]*Sjekkliste[Kostnad], \"\")","v":0}]
[null,"Skjorte, t-skjorter","Klær",5,{"$nulls":3},{"$f":"IFERROR(Sjekkliste[Mengde]*Sjekkliste[Kostnad], \"\")","v":0}]
[null,"Shorts","Klær",2,{"$nulls":3},{"$f":"IFERROR(Sjekkliste[Mengde]*Sjekkliste[Kostnad], \"\")","v":0}]
[null,"Joggesko","Klær",2,1,null,null,{"$f":"IFERROR(Sjekkliste[Mengde]*Sjekkliste[Kostnad], \"\")","v":0}]
[null,"Sokker","Klær",10,{"$nulls":3},{"$f":"IFERROR(Sjekkliste[Mengde]*Sjekkliste[Kostnad], \"\")","v":0}]
[null,"Sommerjakke","Klær",1,1,{"v":80,"d":"kr 80.00"},null,{"$f":"IFERROR(Sjekkliste[Mengde]*Sjekkliste[Kostnad], \"\")","v":{"v":80,"d":"kr 80.00"}}]
[null,"Hettegenser","Klær",1,{"$nulls":3},{"$f":"IFERROR(Sjekkliste[Mengde]*Sjekkliste[Kostnad], \"\")","v":0}]
[null,"Genser","Klær",1,{"$nulls":3},{"$f":"IFERROR(Sjekkliste[Mengde]*Sjekkliste[Kostnad], \"\")","v":0}]
[null,"Undertøy","Klær",10,{"$nulls":3},{"$f":"IFERROR(Sjekkliste[Mengde]*Sjekkliste[Kostnad], \"\")","v":0}]
[null,"Vinterjakke","Klær",1,1,null,null,{"$f":"IFERROR(Sjekkliste[Mengde]*Sjekkliste[Kostnad], \"\")","v":0}]

{"sheet":"Forklaring av budsjett","index":1,"n_rows":6,"n_cols":3,"rows_kept":6}
[null,"Forklaring av budsjett"]
[null,"Legge til kategorier og budsjettbeløp for å spore i forhold til din handleliste."]
[null,"Kategori","Totale kostnader"]
[null,"Klær",{"$f":"IFERROR(SUMIFS(Sjekkliste[Totale kostnader],Sjekkliste[Kategori],Kategori[Kategori]), \"\")","v":{"v":280,"d":"kr 280.00"}}]
[null,"Utstyr",{"$f":"IFERROR(SUMIFS(Sjekkliste[Totale kostnader],Sjekkliste[Kategori],Kategori[Kategori]), \"\")","v":{"v":30,"d":"kr 30.00"}}]
[null,"Tekstboks ",{"$f":"IFERROR(SUMIFS(Sjekkliste[Totale kostnader],Sjekkliste[Kategori],Kategori[Kategori]), \"\")","v":{"v":55,"d":"kr 55.00"}}]

{"sheet":"Liste over gjøremål","index":2,"n_rows":22,"n_cols":3,"rows_kept":22}
[null,"Liste over gjøremål"]
[null,"Spore alle aktivitetene du må få gjort før du starter på skolen."]
[null,"Ferdig","Oppgave"]
[null,"x","Fullføre alle registreringsskjemaer"]
[null,null,"Skoleplan, fysisk og visuell eksamen, hvis påkrevd"]
[null,null,"Bekrefte alle nødvendige vaksinasjoner"]
[null,null,"Hente opptegnelse med doseringsinstruksjoner for all nødvendig medisinering fra legen"]
[null,null,"Gjennomgå klesreglement ved skolen."]
[null,null,"Hente en liste over skoleutstyr"]
[null,null,"Møte med læreren"]
[null,null,"Fastslå lærerens foretrukkede kommunikasjonsmetode (telefon, e-post, skrevet notat)"]
[null,null,"Besøke skolen sammen med barnet ditt"]
[null,null,"Hjelpe barna med å huske din privattelefon, arbeidstelefon og hjemmeadresse."]
[null,null,"Ordne transport, utpeke et trygt møtested og praktisere rutinen"]
[null,null,"Gå sammen med barnet ditt, til og fra skolen noen ganger, hvis barnet går til og fra skolen"]
[null,null,"Introduser barnet ditt til alle sjåførene, ved samarbeid om transport "]
[null,null,"Bestemme tidspunkt og busstopp hvis barnet ditt bruker buss"]
[null,null,"Ordne barnepass, barnepass etter skoletid"]
[null,null,"Planlegge meny for frokost, matpakke og småmåltid i og etter skoletid."]
[null,null,"Bestemme sted og tidsplan for lekser"]
[null,null,"Planlegge rutine for leggetid minst to uker før skolen starter"]
[null,null,"Utarbeide en kalender med alle hendelser og aktiviteter på skolen"]

{"sheet":"Del liste","index":3,"n_rows":4,"n_cols":5,"rows_kept":4}
[null,"Del liste",null,null,"Dele denne listen med andre, slik at de kan bidra. Velg dele, øverst til høyre, eller trykk på ALT og deretter på YU. Lagre filen på OneDrive, og send koblingen til vennene dine."]
[null,"Navn","E-post","Delt?"]
[null,"Person 1","noen@email.com","Ja"]
[null," Person 2","noen@email.com","Nei"]